Cogmind - Beta 16 @@@ ROGUE MODE // 2026.01.17 @ 15:35:04 Player: Stratimus Result: Destroyed by G-34 Mercenary with Small Laser Performance ------------- Evolutions (0) 0 Regions Visited (1) 200 Robots Destroyed (7) 35 Value Destroyed (107) 107 Prototype IDs (0) 0 Alien Tech Used (0) 0 Bonus (0) 0 TOTAL SCORE: 342 Bonus ------- None Cogmind --------- Core Integrity 0/250 Matter 115/300 Energy 99/100 System Corruption 0% Temperature Cool (12) Movement Core (100) Ox1 Location -10/Materials Parts ------- > --- POWER (1) -------- (None) > --- PROPULSION (2) --- (None) > --- UTILITY (2) ------ Small Storage Unit > --- WEAPON (2) ------- (None) > --- INVENTORY (8) ---- (None) Peak State ------------ > --- POWER ------------ (None) > --- PROPULSION ------- Aluminum Leg Aluminum Leg > --- UTILITY ---------- Small Storage Unit > --- WEAPON ----------- Light Assault Rifle Light Assault Rifle > --- INVENTORY -------- (None) [Rating: 5] Favorites ----------- Power None Propulsion Aluminum Leg Leg Aluminum Leg Utility Small Storage Unit Storage Small Storage Unit Weapon Light Assault Rifle Ballistic Gun Light Assault Rifle Build | -11 -10 ------- Run | Yrd Mat Slots Evolved . | . . Power . | . . Propulsion . | . . Utility . | . . Weapon . | . . Parts Attached 5 | 5 . Power . | . . Engine . | . . Core . | . . Reactor . | . . Propulsion 2 | 2 . Treads . | . . Leg 2 | 2 . Wheel . | . . Hover . | . . Flight . | . . Utility 1 | 1 . Device . | . . Storage 1 | 1 . Processor . | . . Hackware . | . . Protection . | . . Artifact . | . . Weapon 2 | 2 . Energy Gun . | . . Energy Cannon . | . . Ballistic Gun 2 | 2 . Ballistic Cannon . | . . Launcher . | . . Special Weapon . | . . Impact Weapon . | . . Slashing Weapon . | . . Piercing Weapon . | . . Special Melee Weapon . | . . Unidentified Prototypes . | . . Parts Lost 4 | . 4 Power . | . . Propulsion 2 | . 2 Utility . | . . Weapon 2 | . 2 Highest Loss Streak 3 | . 3 To Critical Strikes . | . . Average Backups . | . . Power . | . . Propulsion . | . . Utility . | . . Weapon . | . . Tool/Special . | . . Unused Backups . | . . Power . | . . Propulsion . | . . Utility . | . . Weapon . | . . Tool/Special . | . . Average Slot Usage (%) 66 | . 66 Leg 26 | . 26 Storage 14 | . 14 Ballistic Gun 24 | . 24 Peak Build Rating 5 | 5 5 Average Rating 4 | 3 4 On Entrance 2 | . 5 Avg Prop Armor Cover (%) . | . . Naked Turns . | . . Heaviest Build 7 | 7 7 Greatest Support 20 | 20 20 Greatest Overweight (x) 1 | 1 1 Average Overweight (x) . | . . Largest Inventory Capacity 8 | 8 8 Average Capacity 7 | 7 8 Most Carried 2 | 2 . Average Carried . | . . Final Capacity 8 | 8 8 Final Carried . | . . Class Distribution -------------------- 100% | Mutant Dominant Class ---------------- Mutant | -10/Materials Resources | -11 -10 ----------- Run | Yrd Mat Matter Collected 117 | . 117 Remotely . | . . Salvage Created 154 | . 154 Parts 9 | . 9 Haulers Intercepted . | . . Recyclers Shooed . | . . Parts Field Recycled . | . . Retrieved Matter . | . . Parts Self-Destructed . | . . Prevented . | . . Parts Restored . | . . Kills | -11 -10 ------- Run | Yrd Mat Combat Hostiles Destroyed 7 | . 7 Guns 7 | . 7 Classes Destroyed 2 | . 2 Swarmer 6 | . 6 Grunt 1 | . 1 Best Kill Streak 3 | . 3 Combat Bots Only 3 | . 3 Max Kills in Single Turn 1 | . 1 Gunslinging . | . . Exploded . | . . Melee . | . . Uniques/NPCs Destroyed . | . . Combat | -11 -10 -------- Run | Yrd Mat Hostile Shots Fired 99 | . 99 Missed 29 | . 29 Hits 70 | . 70 Projectile 70 | . 70 Damage Taken 684 | . 684 Core 256 | . 256 Absorbed by Shields . | . . Core Remaining (%) 100 | 100 . Volleys Fired 49 | . 49 Largest 2 | . 2 Hottest 40 | . 40 Shots Fired 81 | . 81 Gun 81 | . 81 Cannon . | . . Launcher . | . . Special . | . . Kinetic 81 | . 81 Thermal . | . . Explosive . | . . Electromagnetic . | . . Robot Hit Streak 5 | . 5 Robot Miss Streak 5 | . 5 Penetration Max . | . . Secondary Targets 2 | . 2 Max Gunslinging Chain 1 | . 1 Shots Hit Robots 39 | . 39 Core Hits 17 | . 17 Critical Kills . | . . Critical Parts Destroyed 1 | . 1 Critical Strikes 1 | . 1 Destroy 1 | . 1 Melee Attacks . | . . Impact . | . . Slashing . | . . Piercing . | . . Sneak Attacks . | . . Combat Hostiles . | . . Follow-up Attacks . | . . Damage Inflicted 345 | . 345 Guns 342 | . 342 Cannons . | . . Explosions . | . . Melee . | . . Ramming 3 | . 3 Kinetic 342 | . 342 Thermal . | . . Explosive . | . . Electromagnetic . | . . Impact . | . . Slashing . | . . Piercing . | . . Highest Corruption . | . . Average Corruption . | . . Corruption Purged . | . . Corruption Blocked . | . . Overload Shots . | . . Overflow Damage . | . . Projectiles . | . . Explosions . | . . Melee . | . . Knockbacks . | . . Impact . | . . Kinetic . | . . Secondary . | . . Self-Inflicted Damage 1 | . 1 Shots . | . . Rammed 3 | . 3 Targets Rammed 3 | . 3 Kicked . | . . Crushed . | . . Highest Temperature 10 | . 10 Average Temperature 4 | . 4 Received Heat Transfer 195 | . 195 Siege Activations . | . . Martial Activations . | . . Shielding Activations . | . . Robots Disrupted . | . . Combat Hostiles . | . . Robots Corrupted . | . . Combat Hostiles . | . . Parts Fried . | . . Impact Corruptions . | . . Robots Melted . | . . Combat Hostiles . | . . Parts Melted . | . . Heat Transferred . | . . Parts Sabotaged . | . . Parts Stolen . | . . Parts Stripped . | . . Power Chain Reactions . | . . Alert | -11 -10 ------- Run | Yrd Mat Maximum Alert Level . | . . Low Security (%) 100 | 100 100 Level 1 . | . . Level 2 . | . . Level 3 . | . . Level 4 . | . . Level 5 . | . . High Security . | . . Max Security . | . . Peak Influence 60 | . 60 Initial . | . . Average 22 | . 26 Influence Increases 175 | . 175 Destroy 0b10 Robot/C 140 | . 140 Destroy Leader 30 | . 30 Successful Hack 5 | . 5 Influence Decreases 145 | . 145 Time Decay 105 | . 105 Lost Part 40 | . 40 Squads Dispatched 1 | . 1 Investigation . | . . Extermination . | . . Reinforcement 1 | . 1 Assault . | . . Garrison . | . . Intercept . | . . Searches Triggered . | . . Construction Impeded . | . . Haulers Reinforced . | . . Active Scanning Responses . | . . Cargo Convoy Interrupts . | . . Stealth | -11 -10 --------- Run | Yrd Mat Distress Signals 1 | . 1 Communications Jammed . | . . Distress Signals . | . . Times Spotted 16 | . 16 Peak Tracking Total 4 | . 4 Tactical Retreats . | . . Traps | -11 -10 ------- Run | Yrd Mat Traps Triggered . | . . Indirectly . | . . Trap Hack Attempts . | . . Triggered . | . . Disarmed . | . . Reprogrammed . | . . Reused . | . . Traps Extracted . | . . Installed . | . . Triggered . | . . Machines | -11 -10 ---------- Run | Yrd Mat Machines Disabled . | . . Max in Single Turn . | . . Machines Repaired . | . . Machines Dismantled . | . . Machines Sabotaged . | . . Overloaded Fab Kills . | . . Hacking | -11 -10 --------- Run | Yrd Mat Machines Accessed 1 | . 1 Terminals 1 | . 1 Fabricators . | . . Repair Stations . | . . Recycling Units . | . . Scanalyzers . | . . Garrison Access . | . . Total Hacks 1 | . 1 Successful 1 | . 1 Failed . | . . Catastrophic . | . . Database Lockouts . | . . Manual . | . . Terminals 1 | . 1 Fabricators . | . . Repair Stations . | . . Recycling Units . | . . Scanalyzers . | . . Garrison Access . | . . Terminal Hacks 1 | . 1 Zone Layout 1 | . 1 Fabricator Hacks . | . . Repair Station Hacks . | . . Recycling Unit Hacks . | . . Scanalyzer . | . . Garrison Access Hacks . | . . Unauthorized Hacks . | . . Terminals . | . . Fabricators . | . . Repair Stations . | . . Recycling Units . | . . Scanalyzers . | . . Garrison Access . | . . Data Cores Recovered . | . . Used . | . . Hacking Detections 1 | . 1 Full Trace Events . | . . Feedback Events . | . . Feedback Blocked . | . . Robot Schematics Acquired . | . . Robots Built . | . . Authchips . | . . Time . | . . Total Robot Build Rating . | . . Part Schematics Acquired . | . . Parts Built . | . . Authchips . | . . Time . | . . Total Part Build Rating . | . . Part Studies Acquired . | . . Parts Repaired . | . . Time . | . . Parts Recycled . | . . Recycled Matter . | . . Retrieved Matter . | . . Retrieved Components . | . . Parts Scanalyzed . | . . Part Schematics Acquired . | . . Parts Damaged . | . . Bothacking | -11 -10 ------------ Run | Yrd Mat Used RIF Installer . | . . Robots Hacked . | . . Non-combat . | . . Combat . | . . Robot Hacks Applied . | . . Relay Couplers Released . | . . Fabnet Peak Effective % . | . . Robots Rewired . | . . Allies Hacked . | . . Hacks Repelled . | . . Allies | -11 -10 -------- Run | Yrd Mat Total Allies . | . . Largest Group . | . . Highest-Rated Group . | . . Highest-Rated Ally . | . . Total Orders . | . . Ally Attacks . | . . Total Damage . | . . Kills . | . . Allies Corrupted . | . . Allies Melted . | . . Intel | -11 -10 ------- Run | Yrd Mat Active Infowar (turns) . | . . Robot Analysis Total . | . . Derelict Logs Recovered . | . . Drone Launches . | . . Drone Recoveries . | . . Exploration | -11 -10 ------------- Run | Yrd Mat Turns Passed 308 | 42 266 Spaces Moved 157 | 34 123 Core 25 | 14 11 Treads . | . . Legs 132 | 20 112 Wheels . | . . Hover . | . . Flight . | . . Fastest Speed 50 | 50 100 Average Speed 114 | 100 118 Slowest Speed 120 | 120 120 Overloaded Moves . | . . Propulsion Burnouts . | . . Robots Hopped . | . . Potential Cave-ins . | . . Cave-ins Triggered . | . . Exploration Rate (%) 19 | 3 36 Regions Visited 1 Branch Regions . Pre-discovered Areas . | . . Known Exits Taken . | . . Unknown Exits Taken 1 | 1 . Scrap Searched . | . . Spaces Dug . | . . Terrain Destroyed . | . . Melee . | . . Projectile . | . . AOE . | . . Terrain Rammed . | . . Walls Destroyed . | . . Machines Disabled . | . . Actions | -11 -10 --------- Run | Yrd Mat Total 219 | 40 179 Wait 4 | . 4 Move 156 | 33 123 Hop . | . . Pick Up 2 | 2 . Fast Attach 3 | 3 . Attach 2 | 2 . Detach . | . . Swap . | . . Drop . | . . Fire 49 | . 49 Melee . | . . Ram 3 | . 3 Kick . | . . Crush . | . . Escape Stasis . | . . Rewire . | . . Trap . | . . Miscellaneous . | . . Route ------- -11/Scrapyard -10/Materials (discovered 1 exit: [*Mat]) History --------- Turn | Location | Event 11 | -11/Scrapyard | Discovered new exit (range 16) 43 | -11/Scrapyard | Entered Materials 263 | -10/Materials | Core integrity fell below 50% 302 | -10/Materials | Core integrity fell below 20% 303 | -10/Materials | Discovered new exit (range 13) 309 | -10/Materials | Destroyed by G-34 Mercenary with Small Laser Last Messages --------------- K-01 Serf collects debris. Lgt. Assault Rifle destroyed. K-01 Serf collects debris. S-10 Pest destroyed. K-01 Serf cleans the Matter Pump. G-34 Mercenary destroyed. R-06 Scavenger collects Lgt. Assault Rifle. R-06 Scavenger collects Lgt. Ion Engine. Aluminum Leg destroyed. ALERT: Hostiles spotted, dispatching reinforcements to Terminal M008. Acquired 44 matter. K-01 Serf collects debris. Aluminum Leg destroyed. G-47 Trooper destroyed. Slammed into G-34 Mercenary. EXIT=FOUND Lgt. Assault Rifle destroyed. Slammed into G-34 Mercenary. R-06 Scavenger collects Aluminum Leg. Map ----- +----------------------------------------------------+ | ############### "??? | | #####+# "??? | | # =# "??? | | # !! # #####?????????? | | # ######## # !! # """ # ????????????? | | ## #??????# + !! # """ # ????????????? | | ##]][[[[#??????# # # """ / ???????????? | | ##]][[[[#??????# # # # ??????????? | | #########??????# # # #?????????????? | | #??????????????### ####### """ #?????????????? | | #????????????????# ######## """ #?????????????? | | #????????????????# # # """ #?????????????? | | #????????????????# # + #?????????????? | | #????????????????# # # #?????????????? | | #????????????????? #??????# r #?????????????? | | #????????????????? ???????# =% #?????????????? | | #????????????????? ???????# #?????????????? | | #????????????????? ???????# #?????????????? | | #????????????????# ?####??# !== ##?????????????? | | #???????????????## ##"T"### g!= #??????????????? | | #???????????????# u == #??????????????? | | #???????????????# g #??????????????? | | #???????????????# /// #??????????????? | | #???????????????# // "T" #??????????????? | | #???????????????# // #??????????????? | | #???????????????# @ #??????????????? | | ????????????????# ### #??????????????? | | ????????????????# #?? #??????????????? | | ????????????????# < ########+##??+#??????????????? | | ????????????????# ?????????????????????????????? | | ????????????????###??????????????????????????????? | | ?????????????????????????????????????????????????? | | ?????????????????????????????????????????????????? | | ?????????????????????????????????????????????????? | | ?????????????????????????????????????????????????? | | | | | | | | | | | | | | | | | | | | | | | | | | | | | | | +----------------------------------------------------+ Best States ------------- Heat Dissipation 25 Energy Generation 5 Energy Capacity 100 Matter Stores 101 Matter Capacity 300 Sight Range 16 Terrain Scan Density 10 Evasion (%) 55 Item Schematics ----------------- None Robot Schematics ------------------ None Fabricated ------------ Nothing Repaired ---------- Nothing Studied --------- None Alien Tech Used ----------------- None Achievements -------------- None Challenges ------------ None Game ------ Seed DecoyDirtyBeacon Manual? 0 Play Time 00:06:04 Cumulative 4.1 hours Start 2026.01.17 @ 15:27:42 End 2026.01.17 @ 15:35:04 Sessions 1 Manual Loads 0 Difficulty Rogue Special Mode None Game No. 6 Rogue 6 Adventurer 0 Explorer 0 Win Type - Total 0 Types 0/0/0/0/0/0/0/0/0/0 Lore% 1 Gallery% 4 Achievement% 5 Wizard Run 0 Options --------- Layout 1 ASCII 0 Keyboard 1 Movement Numpad Keybinds 0 Fullscreen 1 Font 24/Smallcaps Map View 50x35 Zoom Use 0% Tactical HUD 0 Map Filters NONE Filters NONE Steam 1 RUN: 15212a85-5f85-48b9-87a7-c9b2b69102ed